bitfinex-derivatives/quotes_ETHF0:USTF0_20251028
["timestamp","ask_amount","ask_price","bid_price","bid_amount"]
[1761681980802,1.1142,4028.5,4028.0,3.2078]
[1761681981106,1.1142,4028.5,4028.1,1.0524]
[1761681981304,3.2078,4028.6,4028.1,1.0524]
[1761681982002,0.00236309,4029.0,4028.6,1.0524]
[1761681982299,1.11656309,4029.0,4028.0,3.5345]
[1761681982515,1.11656309,4029.0,4028.0,3.2078]
[1761681983096,1.1142,4028.9,4027.9,1.0524]
[1761681983296,1.1142,4028.9,4028.0,3.2078]
[1761681983492,3.21016309,4029.0,4028.5,3.2078]
[1761681983702,3.21016309,4029.0,4028.6,1.0524]
[1761681983903,1.1142,4028.9,4027.6,1.0524]
[1761681984107,1.1142,4028.3,4026.9,3.2078]
[1761681984294,0.58798084,4028.8,4026.9,3.2078]
[1761681984295,1.1142,4027.8,4026.9,3.2078]
[1761681984699,1.1142,4027.3,4026.3,3.2078]
[1761681984894,1.1142,4027.2,4026.3,3.2078]
[1761681985312,1.1142,4027.2,4026.4,1.0524]
[1761681985705,1.1142,4027.2,4026.3,3.2078]
[1761681985906,1.1142,4027.2,4026.0,0.0271867]
[1761681985907,1.1142,4026.7,4026.0,0.0271867]
[1761681986214,3.2078,4026.8,4026.0,0.0271867]
[1761681986215,1.1142,4026.5,4026.0,0.0271867]
[1761681986402,4.322,4026.1,4026.0,0.0271867]
[1761681986710,4.32494107,4026.1,4026.0,0.0271867]
[1761681987306,1.1142,4025.9,4025.1,3.2078]
[1761681987503,0.3986,4026.0,4024.3,3.2078]
[1761681987504,1.1142,4025.5,4024.3,3.2078]
[1761681987709,1.1142,4024.9,4024.3,3.2078]
[1761681987911,1.1142,4024.5,4023.7,3.2078]
[1761681988300,1.1142,4023.8,4022.8,0.02485831]
[1761681988606,1.1142,4023.3,4022.8,0.02700501]
[1761681988814,0.58936339,4023.2,4022.8,0.02700501]
[1761681989010,3.2078,4023.4,4022.9,1.0524]
[1761681989309,1.1142,4024.5,4023.4,1.0524]
[1761681989512,0.58958647,4024.4,4024.3,3.2078]
[1761681989703,1.1142,4024.3,4023.7,3.2078]
[1761681989909,1.1142,4024.1,4023.7,3.2078]
[1761681990307,1.5639,4023.8,4023.7,3.2078]
[1761681990600,6.26221377,4023.8,4023.7,3.2078]
[1761681990800,0.86997738,4024.3,4023.7,3.2078]
[1761681990801,4.109,4024.2,4023.7,3.2078]
[1761681991020,1.1142,4024.0,4023.7,3.2078]
[1761681991412,1.1142,4023.8,4023.7,3.2078]
[1761681991718,2.13968518,4023.8,4023.7,3.2078]
[1761681991913,2.21408518,4023.8,4023.7,3.2078]
[1761681992115,2.21408518,4023.8,4023.1,3.2078]
[1761681992116,1.0014,4023.7,4023.1,3.2078]
[1761681992310,3.2078,4023.4,4022.8,0.02700501]
[1761681992516,3.2078,4022.9,4021.6,4.5991]
[1761681992817,0.58928518,4022.8,4022.2,1.0524]
[1761681993011,3.2078,4023.0,4022.2,1.0524]
[1761681993218,0.58834043,4022.9,4022.2,1.0524]
[1761681993413,0.58834043,4022.9,4021.6,0.3389]
[1761681993414,3.2078,4022.4,4021.7,1.0524]
[1761681993614,3.2078,4022.4,4022.2,0.00307033]
[1761681993816,3.2078,4022.4,4021.6,1.4787]
[1761681994119,3.2078,4022.4,4021.6,0.4263]
[1761681994313,3.2078,4022.4,4021.2,4.2602]
[1761681994513,3.2078,4021.9,4021.2,4.2602]
[1761681994710,3.2078,4022.4,4021.3,1.0524]
[1761681994910,0.58767897,4022.3,4021.3,1.0524]
[1761681995122,3.2078,4022.4,4021.8,1.0524]
[1761681995318,7.3728,4022.4,4021.7,3.2078]
[1761681995512,7.3728,4022.4,4021.2,0.00265763]
[1761681995818,0.58694625,4022.3,4021.2,1.05505763]
[1761681996020,7.3728,4022.4,4021.6,0.4263]
[1761681996021,0.58694746,4022.2,4021.6,0.4263]
[1761681996222,1.3034885,4023.0,4021.6,0.4263]
[1761681996223,3.2078,4022.9,4022.1,1.0524]
[1761681996523,3.2078,4022.2,4021.6,0.4263]
[1761681996724,4.169,4022.1,4021.5,3.2078]
[1761681996918,3.2078,4022.2,4021.6,1.4787]
[1761681997117,4.17,4022.1,4021.7,1.0524]
[1761681997316,3.2078,4022.2,4021.7,1.0524]
[1761681997527,7.3788,4022.2,4021.2,0.00265763]
[1761681997830,3.2078,4021.6,4021.2,0.00265763]
[1761681998018,3.2078,4021.6,4020.0,12.6341]
[1761681998019,4.179,4021.5,4020.0,12.6341]
[1761681998323,3.2078,4021.3,4020.1,1.0524]
[1761681998923,3.2078,4021.9,4021.1,1.0524]
[1761681999122,3.84614305,4023.4,4021.1,1.0524]
[1761681999123,3.2078,4023.1,4022.1,1.0524]
[1761681999328,3.2078,4023.1,4023.0,1.4787]
[1761681999523,3.2078,4023.6,4023.0,0.4263]
[1761681999827,3.2078,4023.1,4023.0,0.00210048]
[1761682000128,3.2078,4023.1,4022.0,1.5912]
[1761682000327,0.00320472,4023.6,4021.4,4.3727]
[1761682000328,3.2078,4022.4,4021.4,4.3727]
[1761682000628,0.00320472,4023.6,4021.0,1.5912]
[1761682000629,3.2078,4021.8,4021.0,1.5912]
[1761682000834,4.209,4021.7,4021.0,1.5912]
[1761682001226,4.209,4021.7,4021.4,1.1649]
[1761682001527,4.209,4021.7,4021.1,1.1649]
[1761682001727,3.2078,4021.3,4021.0,0.00215138]
[1761682001922,3.2078,4021.3,4020.0,9.4263]
[1761682002118,3.2078,4020.5,4020.0,4.95392561]
[1761682002321,4.211,4020.4,4020.0,4.95392561]
[1761682002621,3.2078,4020.5,4020.0,4.95392561]
[1761682002929,2.13674614,4022.8,4020.0,4.95392561]
[1761682002930,3.2078,4021.0,4020.5,0.4469]
[1761682003122,3.779,4020.9,4020.5,3.6547]
[1761682003326,3.779,4020.9,4020.5,0.4469]
[1761682003535,0.0744,4020.8,4020.5,0.4469]
[1761682003727,3.779,4020.9,4020.5,0.4469]
[1761682004033,4.213,4020.8,4020.5,0.4469]
[1761682004233,0.00196151,4021.0,4020.6,3.2078]
[1761682004533,3.2078,4022.6,4021.7,1.1649]
[1761682005330,3.2078,4022.1,4021.7,1.1649]
[1761682005829,0.003119,4022.6,4021.9,3.2078]
[1761682006143,0.003119,4022.6,4022.0,1.1649]
[1761682007132,3.2078,4022.4,4022.0,1.1649]
[1761682007332,3.2078,4022.4,4021.6,0.4469]
[1761682007636,0.003119,4022.6,4020.8,1.1649]
[1761682007637,3.2078,4021.7,4020.8,1.1649]
[1761682007832,4.209,4021.6,4020.8,1.1649]
[1761682008034,3.2078,4021.1,4020.8,1.1649]
[1761682008541,0.0744,4021.0,4020.2,1.1649]
[1761682008827,3.2078,4021.1,4020.6,1.1649]
[1761682009031,3.2078,4021.7,4021.6,1.6118]
[1761682009427,3.2078,4021.7,4020.8,3.2078]
[1761682009626,3.2078,4021.2,4020.0,4.95641727]
[1761682009834,4.21,4021.1,4020.0,4.95641727]
[1761682010033,3.2078,4021.2,4020.2,3.2078]
[1761682011534,3.2078,4021.2,4020.6,1.1649]
[1761682011731,3.2822,4021.2,4020.6,1.1649]
[1761682011927,3.2822,4021.2,4020.2,3.2078]
[1761682011928,0.0744,4021.1,4020.2,3.2078]
[1761682012132,3.2078,4020.7,4020.0,6.12131727]
[1761682012333,4.214,4020.6,4020.0,6.12131727]
[1761682013241,3.2078,4020.7,4020.5,0.4469]
[1761682013539,4.211,4020.5,4020.1,1.1649]
[1761682013725,3.2078,4020.2,4020.1,1.1649]
[1761682013929,3.79202672,4020.2,4020.1,1.1649]
[1761682014232,3.79202672,4020.2,4020.0,4.95641727]
[1761682014233,3.79203574,4020.2,4020.0,4.95641727]
[1761682014427,0.58423574,4020.1,4020.0,4.95641727]
[1761682014725,0.58423574,4020.1,4018.5,4.207]
[1761682014726,0.65863574,4020.1,4018.7,1.1649]
[1761682014936,3.2078,4018.8,4018.7,1.1649]
[1761682015133,8.00303574,4018.8,4018.7,1.1649]
[1761682015437,8.00303574,4018.8,4017.2,4.6579]
[1761682015438,0.58423574,4018.8,4018.4,1.1649]
[1761682015833,0.58634257,4018.8,4018.4,1.16723395]
[1761682016041,0.58634257,4018.8,4017.8,0.02488924]
[1761682016042,1.3034885,4018.5,4017.8,1.18978924]
[1761682016337,8.58423574,4018.7,4017.8,1.18978924]
[1761682016338,3.2078,4018.0,4017.9,1.1649]
[1761682016538,8.02103574,4018.0,4017.8,0.02488924]
[1761682016735,0.58423574,4017.9,4017.2,0.4469]
[1761682016936,0.58423574,4017.9,4017.2,1.61392891]
[1761682016937,4.07017009,4017.3,4017.2,1.61392891]
[1761682017133,0.00073119,4017.3,4017.2,1.61392891]
[1761682017332,0.00210683,4018.8,4018.4,1.1649]
[1761682017532,0.00210683,4018.8,4018.7,1.1649]
[1761682017740,0.00210683,4018.8,4018.7,1.22206045]
[1761682018241,0.86447692,4018.8,4018.3,0.38973955]
[1761682018538,3.2078,4019.0,4018.3,0.38973955]
[1761682018736,3.2078,4019.5,4019.4,0.4469]
[1761682019040,0.0744,4019.4,4018.3,0.38973955]
[1761682019240,3.2078,4018.5,4018.3,0.38973955]
[1761682019431,0.86237009,4019.5,4018.3,0.38973955]
[1761682019432,3.2078,4019.4,4018.5,0.05716045]
[1761682019632,3.21089713,4019.4,4018.5,3.2078]
[1761682020031,3.21089713,4019.4,4018.3,0.38973955]
[1761682020032,3.2078,4018.9,4018.3,0.28994262]
[1761682020245,3.2078,4018.4,4017.4,1.1649]
[1761682020437,3.2078,4018.4,4018.3,1.6118]
[1761682020635,3.2078,4018.4,4017.2,0.36898959]
[1761682020834,3.2078,4017.5,4016.1,3.6547]
[1761682021139,4.248,4017.4,4016.5,0.05716045]
[1761682021339,0.86237009,4017.6,4016.1,3.6547]
[1761682021340,3.2078,4018.0,4017.2,0.4469]
[1761682021731,3.2078,4018.0,4017.0,2.7547]
[1761682021934,7.4548,4018.5,4017.6,3.2078]
[1761682022134,3.2078,4019.0,4018.3,0.4469]
[1761682022632,1.70939691,4020.2,4018.3,0.4469]
[1761682022633,0.86237009,4019.8,4018.9,0.05716045]
[1761682022847,0.86237009,4020.3,4020.2,1.22206045]
[1761682023137,3.2078,4020.9,4020.2,1.22206045]
[1761682023339,1.29355514,4021.4,4020.8,3.2078]
[1761682023340,3.2078,4021.4,4020.8,3.2078]
[1761682023645,0.86237009,4021.6,4020.3,3.2078]
[1761682023646,1.2277,4021.5,4020.3,3.2078]
[1761682023947,1.2277,4021.5,4019.6,1.1649]
[1761682023948,2.09007009,4020.4,4019.1,1.1649]
[1761682024133,4.264,4020.3,4020.0,3.2078]
[1761682024332,4.264,4020.3,4017.2,0.4469]
[1761682024333,1.2277,4020.2,4019.4,3.2078]
[1761682024547,4.264,4020.3,4019.5,1.1649]
[1761682024843,4.264,4020.3,4019.6,1.1649]
[1761682025046,1.70939691,4021.1,4019.5,0.00229219]
[1761682025047,4.268,4021.0,4020.1,1.1649]
[1761682025245,3.2078,4021.6,4020.0,0.4469]
[1761682025246,3.2078,4021.6,4020.9,1.1649]
[1761682025544,7.4768,4021.6,4020.9,1.1649]
[1761682025844,7.4768,4021.6,4020.7,4.3727]
[1761682026043,7.4768,4021.6,4020.8,1.1649]
[1761682026348,1.22967999,4021.4,4020.1,4.3727]
[1761682026643,1.22967999,4021.4,4020.6,4.3727]
[1761682026834,1.22967999,4021.4,4021.3,1.1649]
[1761682026835,0.00197999,4021.4,4021.3,1.1649]
[1761682027034,1.22967999,4021.4,4020.8,3.2078]
[1761682027233,1.2277,4021.3,4020.3,3.2078]
[1761682027443,0.86237009,4021.3,4020.4,1.1649]
[1761682027743,0.00197999,4021.4,4021.1,1.1649]
[1761682028441,1.50527999,4021.4,4020.3,1.5705]
[1761682028645,4.71307999,4021.4,4020.3,1.1205]
[1761682028839,0.86435008,4021.4,4020.6,3.2078]
[1761682029039,0.86237009,4021.3,4020.6,3.2078]
[1761682029235,0.56943866,4021.2,4020.6,3.2078]
[1761682029447,0.00197999,4021.4,4021.1,3.2078]
[1761682029644,0.56922114,4021.3,4021.1,3.2078]
[1761682029847,0.00197999,4021.4,4021.1,3.2078]
[1761682030142,0.86237009,4021.9,4021.6,0.6457]
[1761682030344,0.022,4022.8,4021.8,3.2078]
[1761682030345,0.88437009,4022.8,4021.8,3.2078]
[1761682030642,0.88437009,4022.8,4022.6,1.5532]
[1761682030643,0.022,4022.8,4022.6,1.5532]
[1761682031042,0.0237933,4022.8,4022.6,1.55517878]
[1761682032044,0.0237933,4022.8,4022.7,4.761]
[1761682032246,0.0237933,4022.8,4022.7,5.4067]
[1761682033548,4.274,4024.2,4022.8,1.5532]
[1761682033736,3.2078,4024.4,4023.7,1.5532]
[1761682033937,3.2078,4024.4,4023.7,4.761]
[1761682034144,1.4836,4024.3,4023.7,3.2078]
[1761682034344,3.2078,4024.4,4023.7,3.2078]
[1761682034345,3.21039425,4024.4,4023.8,1.5532]
[1761682034751,3.21039425,4024.4,4023.2,1.5532]
[1761682034752,1.4836,4024.3,4023.2,1.5532]
[1761682035141,1.4836,4023.8,4022.9,3.2078]
[1761682035549,1.4836,4023.8,4023.4,3.2078]
[1761682035746,1.4836,4023.8,4023.4,4.761]
[1761682035952,4.07276434,4024.4,4023.5,1.5532]
[1761682036256,0.00259425,4024.4,4024.0,1.5532]
[1761682036752,0.00259425,4024.4,4024.0,1.6276]
[1761682036949,0.00259425,4024.4,4024.0,1.5532]
[1761682037555,1.48619425,4024.4,4023.5,1.5532]
[1761682037853,0.00259425,4024.4,4024.0,1.5532]
[1761682038553,0.00259425,4024.4,4024.2,1.5532]
[1761682040456,0.00259425,4024.4,4024.3,0.0744]
[1761682040650,0.00259425,4024.4,4024.3,1.6276]
[1761682040855,0.00259425,4024.4,4024.3,1.5532]
[1761682042055,0.00259425,4024.4,4023.3,3.2078]
[1761682042056,1.48619425,4024.4,4023.3,3.2078]
[1761682042250,1.4836,4023.9,4023.3,3.2078]
[1761682042552,1.4836,4023.9,4022.9,1.5532]
[1761682043256,1.4836,4023.4,4022.6,0.00197878]
[1761682043950,1.4836,4023.4,4022.6,1.55517878]
[1761682044254,1.4836,4024.0,4023.4,1.5532]
[1761682044551,1.4836,4024.0,4022.6,3.20977878]
[1761682044552,1.4836,4023.6,4022.6,3.20977878]
[1761682045054,0.6152,4024.0,4022.6,0.00197878]
[1761682045055,1.4836,4023.1,4022.6,0.00197878]
[1761682045251,2.0988,4023.0,4022.6,0.00197878]
[1761682045448,4.249,4023.1,4022.6,0.00197878]
[1761682045449,1.4836,4022.9,4022.6,0.00197878]
[1761682045656,3.2078,4023.8,4022.7,1.6276]
[1761682045859,3.2078,4023.8,4023.3,1.5532]
[1761682046056,1.4836,4024.7,4023.0,0.6457]
[1761682046057,7.4608,4024.6,4023.8,1.5532]
[1761682047154,1.48619425,4024.4,4023.7,3.2078]
[1761682047363,1.4836,4023.9,4023.1,1.5532]
[1761682047856,1.4836,4023.9,4023.0,3.2078]
[1761682048162,1.4836,4022.9,4021.5,1.5532]
[1761682048360,3.2078,4022.5,4022.1,1.5532]
[1761682048659,3.2078,4022.8,4022.1,1.5532]
[1761682049051,1.4836,4022.7,4022.1,0.00235025]
[1761682049358,3.2078,4022.7,4022.1,0.00235025]
[1761682050459,3.2078,4022.7,4022.1,1.55555025]
[1761682050856,1.4836,4023.1,4022.3,3.2078]
[1761682051062,1.47757009,4024.0,4022.1,0.00235025]
[1761682051063,1.4836,4022.9,4022.1,0.00235025]
[1761682051255,1.4836,4022.5,4020.8,1.5532]
[1761682051454,1.4836,4021.9,4020.8,1.5532]
[1761682051959,3.2078,4022.0,4020.3,2.938]
[1761682051960,3.2078,4022.0,4021.3,1.5532]
[1761682052257,3.2078,4022.0,4021.5,1.5532]
[1761682053059,7.4638,4022.8,4022.0,1.5532]
[1761682053259,0.56948469,4022.7,4022.0,1.5532]
[1761682053456,0.56948469,4022.6,4022.1,1.5532]
[1761682053649,3.2078,4022.8,4022.3,1.5532]
[1761682054054,1.4836,4022.7,4022.0,4.248]
[1761682054261,3.2078,4022.8,4022.0,4.248]
[1761682054262,3.2078,4022.8,4022.1,1.5532]
[1761682054861,3.2078,4023.3,4022.5,1.5532]
[1761682055060,0.57046622,4023.2,4022.5,1.5532]
[1761682055357,0.57046622,4023.1,4022.5,1.5532]
[1761682055559,1.4836,4022.9,4022.4,4.761]
[1761682055756,1.4836,4022.9,4022.5,1.5532]
[1761682055959,5.26122968,4022.8,4022.0,5.8022]
[1761682056259,0.56982968,4022.7,4022.0,5.8032]
[1761682056654,0.56982968,4022.7,4022.1,1.5532]
[1761682057562,0.56982968,4022.7,4021.9,3.2078]
[1761682057563,1.4836,4022.6,4021.9,3.2078]
[1761682057764,3.2078,4022.3,4021.6,1.5532]
[1761682058061,0.56982968,4022.2,4021.6,1.5532]
[1761682059060,3.2078,4022.3,4021.6,1.5532]
[1761682059460,5.95839691,4023.5,4021.5,4.243]
[1761682059461,0.86237009,4023.2,4022.3,1.5532]
[1761682059768,1.4836,4024.3,4023.2,1.517]
[1761682060057,1.4453,4024.1,4023.6,3.2078]
[1761682060264,1.4453,4023.9,4023.6,3.2078]
[1761682060859,0.86237009,4024.6,4023.7,1.517]
[1761682061062,2.30767009,4025.1,4024.3,4.7248]
[1761682061253,2.30767009,4025.1,4024.3,4.72740588]
[1761682061459,2.30767009,4025.1,4024.3,3.21040588]
[1761682061661,2.30767009,4025.1,4024.3,4.72740588]
[1761682061970,2.30767009,4025.1,4024.3,3.21040588]
[1761682062352,1.44789425,4024.4,4024.3,3.21040588]
[1761682062758,0.57340554,4024.4,4024.3,3.21040588]
[1761682063159,0.57340554,4024.4,4024.3,4.72740588]
[1761682063455,2.01870554,4024.4,4024.3,3.21040588]
[1761682064861,2.01870554,4024.4,4024.3,0.00260588]
[1761682065862,0.57340554,4024.4,4024.3,0.00260588]
[1761682066164,2.01870554,4024.4,4024.3,0.00260588]
[1761682067160,0.57340554,4024.4,4024.3,0.00260588]
[1761682067366,0.57340554,4024.4,4024.3,1.51960588]
[1761682067565,2.01870554,4024.4,4024.3,0.00260588]
[1761682067865,0.57340554,4024.4,4024.3,1.51960588]
[1761682068761,0.00259425,4024.4,4024.3,1.51960588]
[1761682069162,0.57356655,4024.4,4024.3,1.51960588]
[1761682069459,0.57356655,4024.4,4024.3,0.00260588]
[1761682069861,0.57356655,4024.4,4024.3,1.51960588]
[1761682070061,2.0587,4023.9,4023.8,3.2078]
[1761682070260,2.0587,4023.9,4023.8,4.7248]
[1761682070261,0.5709723,4023.9,4023.8,4.7248]
[1761682070464,2.0162723,4023.9,4023.8,3.2078]
[1761682071171,2.0162723,4023.9,4023.8,3.21102257]
[1761682071172,0.5709723,4023.9,4023.8,3.21102257]
[1761682071362,0.57137999,4024.3,4023.9,1.8066]
[1761682071565,0.00259425,4024.4,4023.9,1.517]
[1761682071566,2.01667999,4024.2,4023.9,1.517]
[1761682071763,0.00259425,4024.4,4024.0,1.517]
[1761682071967,0.57142548,4024.3,4024.0,1.517]
[1761682072169,1.44789425,4024.4,4024.2,3.2078]
[1761682072369,0.57130226,4024.3,4024.2,3.2078]
[1761682072570,2.01660226,4024.3,4024.2,3.2078]
[1761682072770,0.57130226,4024.3,4024.2,3.2078]
[1761682072966,2.01660226,4024.3,4024.0,4.198]
[1761682073162,0.57130226,4024.2,4024.0,4.198]
[1761682073368,2.01660226,4024.2,4024.0,4.198]
[1761682073567,0.00259425,4024.4,4024.0,4.198]
[1761682073568,0.00259425,4024.4,4024.1,2.4872]
[1761682073766,0.57124946,4024.3,4024.2,0.9702]
[1761682073971,0.00259425,4024.4,4024.3,0.9702]
[1761682074168,1.4453,4024.2,4023.8,0.00322257]
[1761682074368,1.4453,4024.0,4023.8,0.00322257]
[1761682074565,2.01638005,4023.9,4023.8,0.00322257]
[1761682075170,1.44789425,4024.4,4023.8,0.00322257]
[1761682075378,1.4453,4024.2,4023.8,0.00322257]
[1761682075572,1.4453,4024.0,4023.8,0.00322257]
[1761682075780,0.86496434,4024.4,4023.8,0.00322257]
[1761682075781,3.03152923,4023.9,4023.8,0.00322257]
[1761682076079,4.63712923,4023.9,4023.8,0.00322257]
[1761682078672,2.01622923,4023.9,4023.8,0.00322257]
[1761682078866,2.01622923,4023.9,4023.8,0.97342257]
[1761682079984,2.01622923,4023.9,4023.8,0.00322257]
[1761682080374,0.57092923,4023.9,4023.8,3.51562257]
[1761682080777,1.0153,4023.7,4023.6,3.10739022]
[1761682080975,1.4453,4023.1,4022.6,3.2078]
[1761682081185,1.4453,4022.9,4022.6,6.7698]
[1761682081684,4.167,4023.7,4022.6,6.7698]
[1761682081685,0.86237009,4023.7,4023.2,0.9702]
[1761682081882,8.66735514,4023.9,4023.5,0.9702]
[1761682081883,2.01598919,4023.6,4023.5,0.9702]
[1761682082078,2.01598919,4023.6,4023.2,0.00250965]
[1761682082079,3.03128919,4023.6,4023.2,0.00250965]
[1761682082284,1.4453,4023.4,4023.3,4.164]
[1761682082584,1.4453,4023.3,4023.2,0.00250965]
[1761682082783,4.02348919,4023.3,4023.2,0.00250965]
[1761682084280,3.4528,4022.5,4022.4,0.10753]
[1761682084487,2.01598919,4022.5,4022.4,0.10753]
[1761682084795,0.87146201,4023.7,4023.1,3.5124]
[1761682084983,3.2078,4023.8,4023.7,3.5124]
[1761682085183,3.21039425,4024.4,4023.7,3.51428681]
[1761682085488,1.4453,4024.3,4023.7,5.12608681]
[1761682085792,0.00259425,4024.4,4024.3,3.5124]
[1761682086092,1.44789425,4024.4,4024.2,4.153]
[1761682086293,0.00259425,4024.4,4024.3,0.9702]
[1761682086492,0.00259425,4024.4,4024.3,2.4872]
[1761682086897,0.00259425,4024.4,4024.3,3.5124]
[1761682087992,0.00259425,4024.4,4024.3,3.5868]
[1761682088189,0.00259425,4024.4,4024.3,3.5124]
[1761682089898,1.43579425,4024.4,4024.3,4.143]
[1761682090100,1.4332,4024.3,4024.1,3.2078]
[1761682090404,0.00259425,4024.4,4024.3,0.9614]
[1761682090601,0.00259425,4024.4,4024.3,3.3104]
[1761682091492,0.00259425,4024.4,4024.3,1.8623]
[1761682091693,1.43579425,4024.4,4024.3,4.137]
[1761682091897,1.43579425,4024.4,4024.3,5.0984]
[1761682092201,0.00259425,4024.4,4024.3,7.4474]
[1761682092397,0.00259425,4024.4,4023.7,0.00188681]
[1761682092398,3.29759425,4024.4,4023.7,0.00188681]
[1761682092600,1.4332,4024.3,4023.7,0.00188681]
[1761682092787,1.4332,4023.8,4023.7,0.96328681]
[1761682092988,1.4332,4024.3,4023.7,0.96328681]
[1761682093898,3.295,4023.8,4023.7,0.00188681]
[1761682094205,2.3577,4022.6,4022.5,7.3378]
[1761682095199,2.3577,4022.6,4022.4,0.10753]
[1761682095200,3.295,4022.5,4022.4,0.10753]
[1761682095389,1.4332,4022.3,4021.4,3.2078]
[1761682095701,1.4332,4022.0,4021.4,3.20983646]
[1761682096400,1.4332,4022.0,4021.5,4.126]
[1761682096989,1.4332,4022.0,4021.5,5.5741]
[1761682097204,1.4332,4022.0,4021.5,4.126]
[1761682098003,3.2078,4022.1,4021.6,1.4481]
[1761682098190,1.4332,4022.0,4021.5,4.126]
[1761682098503,1.4332,4022.0,4021.4,3.20983646]
[1761682098802,2.3577,4021.5,4021.4,0.00203646]
[1761682098992,2.3577,4020.9,4020.8,3.2078]
[1761682099305,1.4332,4020.7,4020.3,3.2078]
[1761682100206,1.4332,4020.7,4020.3,0.00300863]
[1761682100398,1.4332,4020.5,4019.2,3.2078]
[1761682100592,7.96824556,4020.6,4017.8,0.02488924]
[1761682100593,1.4332,4019.3,4018.1,3.2078]
[1761682100903,1.4332,4019.3,4018.2,4.115]
[1761682101205,1.4332,4019.3,4018.6,3.2078]
[1761682101393,1.4332,4019.3,4018.6,0.00212582]
[1761682101597,1.4332,4018.9,4018.6,0.00212582]
[1761682102002,1.4332,4018.9,4018.1,3.2078]
[1761682102193,1.4332,4018.4,4018.1,3.2078]
[1761682102805,0.5898,4019.4,4018.2,1.4481]
[1761682103104,0.5898,4019.4,4018.7,3.2078]
[1761682103105,1.4332,4019.3,4018.7,3.2078]
[1761682103299,0.5898,4019.4,4018.2,3.2078]
[1761682103300,1.4352897,4018.4,4018.2,3.2078]
[1761682103896,0.0020897,4018.4,4018.3,1.4481]
[1761682104094,3.2078,4019.9,4018.3,1.97045]
[1761682104299,1.4332,4019.9,4019.7,3.2078]
[1761682104503,2.023,4020.3,4019.7,3.2078]
[1761682104706,3.2078,4020.6,4019.8,1.4481]
[1761682105103,1.43513391,4020.6,4020.2,3.2078]
[1761682105610,1.43513391,4020.6,4020.3,1.4481]
[1761682105611,0.00193391,4020.6,4020.3,1.4481]
[1761682105804,1.4332,4020.5,4020.1,3.2078]
[1761682106004,1.4332,4020.5,4019.9,4.119]
[1761682106210,1.4332,4020.5,4019.8,4.119]
[1761682106412,0.00193391,4020.6,4020.1,4.6559]
[1761682106708,1.43513391,4020.6,4020.1,3.2078]
[1761682106907,1.43513391,4020.6,4019.5,3.2078]
[1761682107113,1.43513391,4020.6,4019.6,4.117]
[1761682107299,1.43513391,4020.6,4019.5,3.2078]
[1761682107507,1.4332,4020.5,4019.5,3.2078]
[1761682109506,1.4332,4020.5,4019.6,1.4481]
[1761682109711,3.20973391,4020.6,4019.6,1.4481]
[1761682110005,0.00193391,4020.6,4020.1,1.4481]
[1761682110308,0.00193391,4020.6,4020.2,1.4481]
[1761682112710,1.43513391,4020.6,4020.0,3.2078]
[1761682112901,1.4332,4020.5,4019.5,3.2078]
[1761682113103,1.4332,4020.5,4019.5,7.3068]
[1761682113301,1.4332,4020.0,4019.5,2.62838039]
[1761682113506,1.4332,4019.3,4018.1,0.00302941]
[1761682113708,1.4332,4018.4,4018.1,0.00302941]
[1761682114010,4.641,4018.2,4018.1,0.00302941]
[1761682115317,3.2078,4018.2,4018.1,1.45112941]
[1761682115613,1.4332,4018.9,4018.1,1.45112941]
[1761682115614,3.2078,4018.7,4018.1,1.45112941]
[1761682115813,4.6898,4019.4,4018.1,1.45112941]
[1761682115814,4.641,4018.2,4018.1,0.00302941]
[1761682116308,1.4332,4018.1,4017.6,0.02509989]
[1761682116511,1.4332,4017.5,4016.4,3.527]
[1761682116707,4.641,4016.9,4016.4,4.096]
[1761682116910,3.2078,4017.5,4016.5,4.6559]
[1761682117111,4.641,4017.5,4016.5,4.6559]
[1761682117418,1.4332,4017.4,4016.5,4.65903452]
[1761682117810,3.2109135,4017.5,4016.8,1.4481]
[1761682118816,3.2109135,4017.5,4016.9,4.091]
[1761682119009,3.2109135,4017.5,4017.0,1.4481]
[1761682119412,4.6441135,4017.5,4017.1,1.4481]
[1761682119615,3.2109135,4017.5,4017.1,1.4481]
[1761682119809,3.2109135,4017.5,4017.1,5.5361]
[1761682120012,3.2109135,4017.5,4017.2,1.3583]
[1761682120212,1.3345135,4017.5,4017.0,3.2078]
[1761682120508,0.0031135,4017.5,4017.2,1.3583]
[1761682120902,0.0031135,4017.5,4017.1,4.1614]
[1761682120903,3.2078,4018.5,4017.4,1.3583]
[1761682121109,3.2078,4019.0,4018.5,1.6812]
[1761682121305,3.2078,4019.7,4019.0,1.3583]
[1761682121518,1.3314,4020.5,4019.7,1.3583]
[1761682121519,3.2078,4020.5,4019.7,1.3583]
[1761682121713,3.2078,4020.5,4019.8,1.3583]
[1761682121912,3.2099549,4020.5,4019.8,1.3609741]
[1761682122107,4.5392,4019.9,4019.8,0.0026741]
[1761682122519,3.2078,4019.9,4019.8,1.3609741]
[1761682124217,0.0021549,4020.5,4019.8,1.3609741]
[1761682124218,3.2099549,4020.5,4019.8,1.3609741]
[1761682124518,3.2099549,4020.5,4020.0,1.3583]
[1761682125316,0.0021549,4020.5,4020.0,1.4327]
[1761682125519,0.0021549,4020.5,4020.2,1.3583]
[1761682126028,3.2078,4021.0,4020.4,1.3583]
[1761682126321,3.2078,4021.5,4020.7,1.3583]
[1761682126715,3.2078,4021.5,4020.7,1.4327]
[1761682127117,3.2078,4021.5,4020.7,1.3583]
[1761682127327,3.21070224,4021.5,4020.7,1.3583]
[1761682127516,3.21070224,4021.5,4020.6,3.2078]
[1761682127517,1.3314,4021.4,4020.6,3.2078]
[1761682127717,1.3314,4021.4,4020.8,4.08]
[1761682127923,3.21070224,4021.5,4020.9,1.3583]
[1761682128220,3.21070224,4021.5,4020.9,1.4327]
[1761682128425,0.00290224,4021.5,4021.1,1.3583]